Workbook

Sheet Infiltration (hård yta känd)
B2: Infiltrationsytan ska dimensioneras | F2: för att med god säkerhet omhänderta | H2: Detta är en implementation av den beräkningsmetodik som beskrivs i rapporten "Hydrologisk dimensionering av buffertmagasin för dagvatten":
B3: 95 procent | E3: av årsnederbörden | F3: i dagens klimat. | H3: http://vav.griffel.net/filer/C_Hydrologisk-dimensionering-buffertmagasin-dagvatten.pdf
B5: Ce | C5: = | D5: =IF(F2="för att med god precison omhänderta",IF(B3="98 procent",6,IF(B3="97 procent",5.2,IF(B3="95 procent",4.2,IF(B3="90 procent",3.05,IF(B3="80 procent",2.05,IF(B3="60 procent",1.15,"?")))))),IF(F2="för att med god säkerhet omhänderta",IF(B3="98 procent",7,IF(B3="97 procent",5.9,IF(B3="95 procent",4.8,IF(B3="90 procent",3.4,IF(B3="80 procent",2.25,IF(B3="60 procent",1.3,"?")))))),"?"))*IF(F3="i dagens klimat.",1,IF(F3="i ett framtida, blötare klimat.",1.3,"?")) -> 4.80 | E5: =IF(D5>7,"OBS: Värdet får ej överstiga 7 om formeln ska gälla.","") -> 
M8: Ar | N8: = | O8: =K11+U11 -> 1,000 | P8: m2
I11: Ah | J11: = | K11: 940 | L11: m2 | S11: Am | T11: = | U11: =(K11)/(U14/(D5*(SQRT(U14/U17)-U14/(20*U17)-(6-D5)/20))-1) -> 60 | V11: m2
K13: Hårddgjord yta
S14: dm | T14: = | U14: 100 | V14: mm
K15: =IF(U14/U17<1/6,"OBS: Magasinet töms för fort för att formeln ska gälla.",IF(U14/U17>12,"OBS: Magasinet töms för långsamt för att formeln ska gälla.","")) -> 
S17: fc | T17: = | U17: 50 | V17: mm/h
R19: Dränerad infiltrationsyta

Sheet Infiltration (total yta känd)
B2: Infiltrationsytan ska dimensioneras | F2: för att med god säkerhet omhänderta | H2: Detta är en implementation av den beräkningsmetodik som beskrivs i rapporten "Hydrologisk dimensionering av buffertmagasin för dagvatten":
B3: 95 procent | E3: av årsnederbörden | F3: i dagens klimat. | H3: http://vav.griffel.net/filer/C_Hydrologisk-dimensionering-buffertmagasin-dagvatten.pdf
B5: Ce | C5: = | D5: =IF(F2="för att med god precison omhänderta",IF(B3="98 procent",6,IF(B3="97 procent",5.2,IF(B3="95 procent",4.2,IF(B3="90 procent",3.05,IF(B3="80 procent",2.05,IF(B3="60 procent",1.15,"?")))))),IF(F2="för att med god säkerhet omhänderta",IF(B3="98 procent",7,IF(B3="97 procent",5.9,IF(B3="95 procent",4.8,IF(B3="90 procent",3.4,IF(B3="80 procent",2.25,IF(B3="60 procent",1.3,"?")))))),"?"))*IF(F3="i dagens klimat.",1,IF(F3="i ett framtida, blötare klimat.",1.3,"?")) -> 4.80 | E5: =IF(D5>7,"OBS: Värdet får ej överstiga 7 om formeln ska gälla.","") -> 
M8: Ar | N8: = | O8: 1,000 | P8: m2
I11: Ah | J11: = | K11: =O8-U11 -> 940 | L11: m2 | S11: Am | T11: = | U11: =(D5*O8)/U14*(SQRT(U14/U17)-U14/(20*U17)-(6-D5)/20) -> 60 | V11: m2
K13: Hårddgjord yta
S14: dm | T14: = | U14: 100 | V14: mm
K15: =IF(U14/U17<1/6,"OBS: Magasinet töms för fort för att formeln ska gälla.",IF(U14/U17>12,"OBS: Magasinet töms för långsamt för att formeln ska gälla.","")) -> 
S17: fc | T17: = | U17: 50 | V17: mm/h
R19: Dränerad infiltrationsyta

Sheet Infiltration (del av botten)
B2: Infiltrationsytan ska dimensioneras | G2: för att med god säkerhet omhänderta | I2: Detta är en implementation av den beräkningsmetodik som beskrivs i rapporten "Hydrologisk dimensionering av buffertmagasin för dagvatten":
B3: 95 procent | F3: av årsnederbörden | G3: i dagens klimat. | I3: http://vav.griffel.net/filer/C_Hydrologisk-dimensionering-buffertmagasin-dagvatten.pdf
B5: Ce | C5: = | D5: =IF(G2="för att med god precison omhänderta",IF(B3="98 procent",6,IF(B3="97 procent",5.2,IF(B3="95 procent",4.2,IF(B3="90 procent",3.05,IF(B3="80 procent",2.05,IF(B3="60 procent",1.15,"?")))))),IF(G2="för att med god säkerhet omhänderta",IF(B3="98 procent",7,IF(B3="97 procent",5.9,IF(B3="95 procent",4.8,IF(B3="90 procent",3.4,IF(B3="80 procent",2.25,IF(B3="60 procent",1.3,"?")))))),"?"))*IF(G3="i dagens klimat.",1,IF(G3="i ett framtida, blötare klimat.",1.3,"?")) -> 4.80 | F5: =IF(D5>7,"OBS: Värdet får ej överstiga 7 om formeln ska gälla.","") -> 
B6: α | C6: = | D6: =1000*D8/(D5*P8)+1/20 -> 0.68
B7: β | C7: = | D7: =(6-D5)/20 -> 0.06
B8: ω | C8: = | D8: =W17*W21/1000 -> 3 | N8: Ar | O8: = | P8: 1,000 | Q8: m2
B9: Vm | C9: = | D9: =(1+SQRT(1-4*D6*D7)-2*D6*D7)*D8/(2*D6^2 ) -> 6.0 | E9: m3
J11: Ah | K11: = | L11: =IF(TYPE(D9)=16,"?",P8-W11) -> 940 | M11: m2 | U11: Am | V11: = | W11: =IF(TYPE(D9)=16,"?",D9/(W14/1000)) -> 60 | X11: m2
L13: Hårddgjord yta
U14: dm | V14: = | W14: 100 | X14: mm
L15: =IF(TYPE(D9)=16,"OBS: Magasinet töms för fort för att formeln ska gälla.",IF(D9/D8>12,"OBS: Magasinet töms för långsamt för att formeln ska gälla.","")) -> 
L16: =IF(TYPE(D9)=16,"Minska infiltrationskapaciteten eller infiltrationsytan!",IF(D9/D8>12,"OBS: Öka infiltrationskapaciteten eller infiltrationsytan!","")) -> 
U17: fc | V17: = | W17: 50 | X17: mm/h
T19: Dränerad infiltrationsyta
U21: Af | V21: = | W21: 60 | X21: m2
W23: =IF(W21>W11,"FEL: Filterytan är större än magasinsbotten!","") -> 

Sheet Filter
B2: Infiltrationsytan ska dimensioneras | G2: för att med god säkerhet omhänderta | I2: Detta är en implementation av den beräkningsmetodik som beskrivs i rapporten "Hydrologisk dimensionering av buffertmagasin för dagvatten":
B3: 95 procent | F3: av årsnederbörden | G3: i dagens klimat. | I3: http://vav.griffel.net/filer/C_Hydrologisk-dimensionering-buffertmagasin-dagvatten.pdf
B5: Ce | C5: = | D5: =IF(G2="för att med god precison omhänderta",IF(B3="98 procent",6,IF(B3="97 procent",5.2,IF(B3="95 procent",4.2,IF(B3="90 procent",3.05,IF(B3="80 procent",2.05,IF(B3="60 procent",1.15,"?")))))),IF(G2="för att med god säkerhet omhänderta",IF(B3="98 procent",7,IF(B3="97 procent",5.9,IF(B3="95 procent",4.8,IF(B3="90 procent",3.4,IF(B3="80 procent",2.25,IF(B3="60 procent",1.3,"?")))))),"?"))*IF(G3="i dagens klimat.",1,IF(G3="i ett framtida, blötare klimat.",1.3,"?")) -> 4.80 | F5: =IF(D5>7,"OBS: Värdet får ej överstiga 7 om formeln ska gälla.","") -> 
B6: α | C6: = | D6: =1000*D8/(D5*Q8)+1/20 -> 0.38
B7: β | C7: = | D7: =(6-D5)/20 -> 0.06
B8: ω | C8: = | D8: =X21*X24/1000 -> 1.6 | O8: Ar | P8: = | Q8: 1,000 | R8: m2
X13: Hårddgjord yta
K17: Vm | L17: = | M17: =(1+SQRT(1-4*D6*D7)-2*D6*D7)*D8/(2*D6^2 ) -> 10.4 | N17: m3 buffertmagasin
Q18: Filtrets dräneringsnivå
V21: fc | W21: = | X21: 400 | Y21: mm/h
M23: =IF(TYPE(M17)=16,"OBS: Magasinet töms för fort för att formeln ska gälla.",IF(M17/D8>12,"OBS: Magasinet töms för långsamt för att formeln ska gälla.","")) ->  | U23: Filterarea
M24: =IF(TYPE(M17)=16,"Minska filterhastigheten eller filterarean!",IF(M17/D8>12,"OBS: Öka filterhastigheten eller filterarean!","")) ->  | V24: Af | W24: = | X24: 4 | Y24: m2

Sheet Pump
B2: Infiltrationsytan ska dimensioneras | G2: för att med god säkerhet omhänderta | I2: Detta är en implementation av den beräkningsmetodik som beskrivs i rapporten "Hydrologisk dimensionering av buffertmagasin för dagvatten":
B3: 95 procent | F3: av årsnederbörden | G3: i dagens klimat. | I3: http://vav.griffel.net/filer/C_Hydrologisk-dimensionering-buffertmagasin-dagvatten.pdf
B5: Ce | C5: = | D5: =IF(G2="för att med god precison omhänderta",IF(B3="98 procent",6,IF(B3="97 procent",5.2,IF(B3="95 procent",4.2,IF(B3="90 procent",3.05,IF(B3="80 procent",2.05,IF(B3="60 procent",1.15,"?")))))),IF(G2="för att med god säkerhet omhänderta",IF(B3="98 procent",7,IF(B3="97 procent",5.9,IF(B3="95 procent",4.8,IF(B3="90 procent",3.4,IF(B3="80 procent",2.25,IF(B3="60 procent",1.3,"?")))))),"?"))*IF(G3="i dagens klimat.",1,IF(G3="i ett framtida, blötare klimat.",1.3,"?")) -> 4.80 | F5: =IF(D5>7,"OBS: Värdet får ej överstiga 7 om formeln ska gälla.","") -> 
B6: α | C6: = | D6: =1000*D8/(D5*Q8)+1/20 -> 0.80
B7: β | C7: = | D7: =(6-D5)/20 -> 0.06
B8: ω | C8: = | D8: =3.6*W24 -> 3.6 | O8: Ar | P8: = | Q8: 1,000 | R8: m2
U13: Hårddgjord yta
K17: Vm | L17: = | M17: =(1+SQRT(1-4*D6*D7)-2*D6*D7)*D8/(2*D6^2 ) -> 5.1 | N17: m3 buffertmagasin
Q18: Startnivå för pump
S21: Sump
M23: =IF(TYPE(M17)=16,"OBS: Magasinet töms för fort för att formeln ska gälla.",IF(M17/D8>12,"OBS: Magasinet töms för långsamt för att formeln ska gälla.","")) ->  | U23: Pumpkapacitet
M24: =IF(TYPE(M17)=16,"Minska pumpkapaciteten!",IF(M17/D8>12,"OBS: Öka pumpkapaciteten!","")) ->  | U24: qm | V24: = | W24: 1 | X24: l/s

Sheet Reglerad avtappning
B2: Infiltrationsytan ska dimensioneras | G2: för att med god säkerhet omhänderta | I2: Detta är en implementation av den beräkningsmetodik som beskrivs i rapporten "Hydrologisk dimensionering av buffertmagasin för dagvatten":
B3: 95 procent | F3: av årsnederbörden | G3: i dagens klimat. | I3: http://vav.griffel.net/filer/C_Hydrologisk-dimensionering-buffertmagasin-dagvatten.pdf
B5: Ce | C5: = | D5: =IF(G2="för att med god precison omhänderta",IF(B3="98 procent",6,IF(B3="97 procent",5.2,IF(B3="95 procent",4.2,IF(B3="90 procent",3.05,IF(B3="80 procent",2.05,IF(B3="60 procent",1.15,"?")))))),IF(G2="för att med god säkerhet omhänderta",IF(B3="98 procent",7,IF(B3="97 procent",5.9,IF(B3="95 procent",4.8,IF(B3="90 procent",3.4,IF(B3="80 procent",2.25,IF(B3="60 procent",1.3,"?")))))),"?"))*IF(G3="i dagens klimat.",1,IF(G3="i ett framtida, blötare klimat.",1.3,"?")) -> 4.80 | F5: =IF(D5>7,"OBS: Värdet får ej överstiga 7 om formeln ska gälla.","") -> 
B6: α | C6: = | D6: =1000*D8/(D5*Q8)+1/20 -> 0.80
B7: β | C7: = | D7: =(6-D5)/20 -> 0.06
B8: ω | C8: = | D8: =3.6*W20 -> 3.6 | O8: Ar | P8: = | Q8: 1,000 | R8: m2
U13: Hårddgjord yta
K17: Vm | L17: = | M17: =(1+SQRT(1-4*D6*D7)-2*D6*D7)*D8/(2*D6^2 ) -> 5.1 | N17: m3 buffertmagasin
Q18: Avtappningsnivå
U19: Medelavtappning
U20: qm | V20: = | W20: 1 | X20: l/s
M23: =IF(TYPE(M17)=16,"OBS: Magasinet töms för fort för att formeln ska gälla.",IF(M17/D8>12,"OBS: Magasinet töms för långsamt för att formeln ska gälla.","")) -> 
M24: =IF(TYPE(M17)=16,"Minska pumpkapaciteten!",IF(M17/D8>12,"OBS: Öka pumpkapaciteten!","")) -> 
